[Event "Late-Titled-Tuesday-Blitz-September-12-2023"]
[Site "Chess.com"]
[Date "2023.09.12"]
[Round "9"]
[White "Jospem"]
[Black "zeitnot2006"]
[Result "1-0"]
[WhiteElo "3086"]
[BlackElo "2760"]
[TimeControl "180+1"]
[EndTime "15:38:20 PDT"]
[Termination "Jospem won by resignation"]

1. a3 {[%clk 0:03:00.9]} 1... e5 {[%clk 0:02:57.8]} 2. e3 {[%clk 0:03:00.9]}
2... d5 {[%clk 0:02:57.7]} 3. d4 {[%clk 0:03:01.5]} 3... exd4 {[%clk 0:02:58.2]}
4. exd4 {[%clk 0:03:01.9]} 4... Nc6 {[%clk 0:02:58.6]} 5. Nf3 {[%clk 0:03:02.3]}
5... Bd6 {[%clk 0:02:59]} 6. h3 {[%clk 0:03:02.8]} 6... Nge7 {[%clk 0:02:58.9]}
7. Bd3 {[%clk 0:03:03.5]} 7... O-O {[%clk 0:02:57.7]} 8. Nc3 {[%clk 0:03:03.3]}
8... Bf5 {[%clk 0:02:38.9]} 9. Bxf5 {[%clk 0:02:52.4]} 9... Nxf5 {[%clk
0:02:39.8]} 10. Nxd5 {[%clk 0:02:53]} 10... Bxa3 {[%clk 0:02:30.4]} 11. Ne3
{[%clk 0:02:44.2]} 11... Nxe3 {[%clk 0:02:24.5]} 12. fxe3 {[%clk 0:02:45.1]}
12... Bd6 {[%clk 0:02:19.1]} 13. O-O {[%clk 0:02:45]} 13... Qe7 {[%clk
0:02:17.5]} 14. Qd3 {[%clk 0:02:44.1]} 14... f5 {[%clk 0:02:12.3]} 15. c4 {[%clk
0:02:41.1]} 15... Kh8 {[%clk 0:02:03.2]} 16. Bd2 {[%clk 0:02:33]} 16... b6
{[%clk 0:01:47.4]} 17. Rac1 {[%clk 0:02:24.5]} 17... Rad8 {[%clk 0:01:41.5]} 18.
Qb3 {[%clk 0:02:25]} 18... Bg3 {[%clk 0:01:34.7]} 19. d5 {[%clk 0:02:18.9]}
19... Ne5 {[%clk 0:01:19.8]} 20. Nd4 {[%clk 0:02:19.5]} 20... Qd7 {[%clk
0:00:41.3]} 21. Ne6 {[%clk 0:02:16.5]} 21... Ng6 {[%clk 0:00:40.6]} 22. Bc3
{[%clk 0:02:12.7]} 22... Rf7 {[%clk 0:00:39.9]} 23. Rf3 {[%clk 0:02:06]} 23...
Bd6 {[%clk 0:00:33.6]} 24. Nxd8 {[%clk 0:02:05.9]} 24... Qxd8 {[%clk 0:00:34.5]}
25. Qc2 {[%clk 0:02:03.2]} 25... Nh4 {[%clk 0:00:34.6]} 26. Rf4 {[%clk 0:01:58]}
26... Bxf4 {[%clk 0:00:33.4]} 27. exf4 {[%clk 0:01:58.9]} 27... Re7 {[%clk
0:00:27.2]} 28. Be5 {[%clk 0:01:57.3]} 28... Ng6 {[%clk 0:00:26.5]} 29. Qxf5
{[%clk 0:01:56.5]} 29... Qe8 {[%clk 0:00:23.9]} 30. Re1 {[%clk 0:01:54.9]} 30...
Rf7 {[%clk 0:00:19.8]} 31. Bxg7+ {[%clk 0:01:33.2]} 31... Kxg7 {[%clk
0:00:20.7]} 32. Qxg6+ {[%clk 0:01:33.6]} 32... hxg6 {[%clk 0:00:20.3]} 33. Rxe8
{[%clk 0:01:34.1]} 33... Rxf4 {[%clk 0:00:19.3]} 34. Re7+ {[%clk 0:01:34.5]}
34... Rf7 {[%clk 0:00:19.4]} 35. Rxf7+ {[%clk 0:01:34.7]} 35... Kxf7 {[%clk
0:00:20.3]} 36. Kf2 {[%clk 0:01:34.8]} 36... Kf6 {[%clk 0:00:21]} 37. Ke3 {[%clk
0:01:33.3]} 37... Ke5 {[%clk 0:00:21]} 38. h4 {[%clk 0:01:29.9]} 38... Kf5
{[%clk 0:00:18.6]} 39. Kf3 {[%clk 0:01:30.2]} 39... a5 {[%clk 0:00:17.7]} 40.
g4+ {[%clk 0:01:28.7]} 40... Ke5 {[%clk 0:00:17.1]} 41. b3 {[%clk 0:01:28.2]}
41... Kd4 {[%clk 0:00:09.7]} 42. h5 {[%clk 0:01:26.7]} 42... gxh5 {[%clk
0:00:10.6]} 43. gxh5 {[%clk 0:01:27.6]} 43... Ke5 {[%clk 0:00:10.1]} 44. Kg4
{[%clk 0:01:28]} 44... Kf6 {[%clk 0:00:11]} 45. Kf4 {[%clk 0:01:28.3]} 45... Kg7
{[%clk 0:00:09.9]} 46. Kf5 {[%clk 0:01:27.6]} 46... Kh6 {[%clk 0:00:10.8]} 47.
Ke6 {[%clk 0:01:28.1]} 47... Kxh5 {[%clk 0:00:11.7]} 48. Kd7 {[%clk 0:01:28.6]}
1-0

[Event "Late-Titled-Tuesday-Blitz-September-12-2023"]
[Site "Chess.com"]
[Date "2023.09.12"]
[Round "9"]
[White "rikchessmx"]
[Black "younix2022"]
[Result "1-0"]
[WhiteElo "2296"]
[BlackElo "2064"]
[TimeControl "180+1"]
[EndTime "15:38:20 PDT"]
[Termination "rikchessmx won by resignation"]

1. e4 {[%clk 0:03:00.9]} 1... c5 {[%clk 0:02:58.4]} 2. Nf3 {[%clk 0:03:00.4]}
2... e6 {[%clk 0:02:57.8]} 3. d4 {[%clk 0:03:01.3]} 3... cxd4 {[%clk 0:02:58.4]}
4. Nxd4 {[%clk 0:03:01.9]} 4... Nf6 {[%clk 0:02:57.1]} 5. Nc3 {[%clk 0:03:02.2]}
5... Nc6 {[%clk 0:02:58]} 6. Nxc6 {[%clk 0:03:02]} 6... bxc6 {[%clk 0:02:58.1]}
7. Bd3 {[%clk 0:03:02.9]} 7... Bb4 {[%clk 0:02:52.2]} 8. O-O {[%clk 0:03:02.2]}
8... O-O {[%clk 0:02:52.4]} 9. Qe1 {[%clk 0:03:02.1]} 9... d5 {[%clk 0:02:51.8]}
10. e5 {[%clk 0:02:59.8]} 10... Nd7 {[%clk 0:02:46.3]} 11. a3 {[%clk 0:02:59.7]}
11... Be7 {[%clk 0:02:40.7]} 12. b4 {[%clk 0:02:55.1]} 12... a5 {[%clk
0:02:38.3]} 13. b5 {[%clk 0:02:51.8]} 13... cxb5 {[%clk 0:02:35.2]} 14. Nxb5
{[%clk 0:02:51]} 14... Nc5 {[%clk 0:02:29.9]} 15. Be3 {[%clk 0:02:43]} 15...
Nxd3 {[%clk 0:02:25.6]} 16. cxd3 {[%clk 0:02:42.3]} 16... Ba6 {[%clk 0:02:19.3]}
17. a4 {[%clk 0:02:41.9]} 17... d4 {[%clk 0:02:15.1]} 18. Bf4 {[%clk 0:02:38]}
18... Bg5 {[%clk 0:02:06.9]} 19. Bg3 {[%clk 0:02:32.3]} 19... Rc8 {[%clk
0:02:04.2]} 20. Qe4 {[%clk 0:02:25.8]} 20... Rc2 {[%clk 0:01:50.1]} 21. h4
{[%clk 0:02:20.9]} 21... Bh6 {[%clk 0:01:44.6]} 22. Nxd4 {[%clk 0:02:13.5]}
22... Rd2 {[%clk 0:01:39.2]} 23. Ra3 {[%clk 0:02:07.3]} 23... Qe7 {[%clk
0:01:32.2]} 24. Rc3 {[%clk 0:02:06.3]} 24... Bb7 {[%clk 0:01:31.9]} 25. Qe1
{[%clk 0:01:59.4]} 25... Rd8 {[%clk 0:01:27.3]} 26. Nc6 {[%clk 0:01:43.9]} 26...
Bxc6 {[%clk 0:01:24.9]} 27. Rxc6 {[%clk 0:01:43.5]} 27... R2xd3 {[%clk
0:01:24.7]} 28. Qxa5 {[%clk 0:01:41.2]} 28... Qa3 {[%clk 0:01:10.8]} 29. Rd6
{[%clk 0:01:34.9]} 29... Rf8 {[%clk 0:01:02]} 30. Qb5 {[%clk 0:01:30.5]} 30...
Rb3 {[%clk 0:00:52.6]} 31. Qd7 {[%clk 0:01:29.8]} 31... g6 {[%clk 0:00:52.5]}
32. h5 {[%clk 0:01:24.7]} 32... Rb4 {[%clk 0:00:50.8]} 33. Ra6 {[%clk
0:01:09.7]} 33... gxh5 {[%clk 0:00:37.2]} 34. Qe7 {[%clk 0:01:04.9]} 34... h4
{[%clk 0:00:34]} 35. Bxh4 {[%clk 0:01:00.4]} 35... Rxa4 {[%clk 0:00:30.9]} 36.
Qxa3 {[%clk 0:00:58.5]} 1-0

[Event "Late-Titled-Tuesday-Blitz-September-12-2023"]
[Site "Chess.com"]
[Date "2023.09.12"]
[Round "9"]
[White "falzehope0"]
[Black "nitpicker"]
[Result "0-1"]
[WhiteElo "2362"]
[BlackElo "2267"]
[TimeControl "180+1"]
[EndTime "15:38:31 PDT"]
[Termination "nitpicker won by checkmate"]

1. d4 {[%clk 0:03:00.5]} 1... Nf6 {[%clk 0:02:59.4]} 2. e3 {[%clk 0:03:00.4]}
2... b6 {[%clk 0:02:45.6]} 3. f4 {[%clk 0:03:00]} 3... Bb7 {[%clk 0:02:43.3]} 4.
Nf3 {[%clk 0:02:54.1]} 4... g6 {[%clk 0:02:40.7]} 5. Bd3 {[%clk 0:02:53.8]} 5...
Bg7 {[%clk 0:02:39.1]} 6. O-O {[%clk 0:02:51]} 6... d6 {[%clk 0:02:39]} 7. Nbd2
{[%clk 0:02:50.1]} 7... Nbd7 {[%clk 0:02:38.2]} 8. Qe1 {[%clk 0:02:48.9]} 8...
O-O {[%clk 0:02:37.3]} 9. f5 {[%clk 0:02:49]} 9... e6 {[%clk 0:02:28.1]} 10.
fxg6 {[%clk 0:02:48.7]} 10... hxg6 {[%clk 0:02:26.8]} 11. Ng5 {[%clk 0:02:47.5]}
11... Nh5 {[%clk 0:02:13.3]} 12. Ngf3 {[%clk 0:02:35.8]} 12... e5 {[%clk
0:02:10.4]} 13. c3 {[%clk 0:02:33.1]} 13... Qe7 {[%clk 0:02:07.8]} 14. Bc4
{[%clk 0:02:14.6]} 14... Rae8 {[%clk 0:01:53.1]} 15. Qf2 {[%clk 0:02:10]} 15...
Kh8 {[%clk 0:01:27.3]} 16. g4 {[%clk 0:01:58.8]} 16... e4 {[%clk 0:01:15]} 17.
gxh5 {[%clk 0:01:45.1]} 17... exf3 {[%clk 0:01:14.1]} 18. hxg6 {[%clk
0:01:25.5]} 18... Qg5+ {[%clk 0:01:13.9]} 19. Qg3 {[%clk 0:01:22.7]} 19... Qxg3+
{[%clk 0:00:49.5]} 20. hxg3 {[%clk 0:01:20.1]} 20... fxg6 {[%clk 0:00:50.1]} 21.
Kf2 {[%clk 0:01:13]} 21... Bh6 {[%clk 0:00:47.6]} 22. Nb3 {[%clk 0:01:07.5]}
22... Nf6 {[%clk 0:00:43.9]} 23. d5 {[%clk 0:00:56.8]} 23... Ng4+ {[%clk
0:00:34.8]} 24. Kg1 {[%clk 0:00:55.7]} 24... f2+ {[%clk 0:00:31.1]} 25. Kg2
{[%clk 0:00:55.6]} 25... b5 {[%clk 0:00:30.9]} 26. Bxb5 {[%clk 0:00:48.5]} 26...
Bxd5+ {[%clk 0:00:30.4]} 27. Kh3 {[%clk 0:00:48.6]} 27... Re5 {[%clk 0:00:20.7]}
28. Bd7 {[%clk 0:00:20.9]} 28... Rh5+ {[%clk 0:00:17.3]} 29. Kxg4 {[%clk
0:00:20.7]} 29... Bf3# {[%clk 0:00:17.5]} 0-1

[Event "Late-Titled-Tuesday-Blitz-September-12-2023"]
[Site "Chess.com"]
[Date "2023.09.12"]
[Round "9"]
[White "drdaro"]
[Black "enestnrvrd"]
[Result "1-0"]
[WhiteElo "2321"]
[BlackElo "2690"]
[TimeControl "180+1"]
[EndTime "15:38:33 PDT"]
[Termination "drdaro won by resignation"]

1. e4 {[%clk 0:02:59.2]} 1... e5 {[%clk 0:02:19.5]} 2. Nf3 {[%clk 0:02:59]} 2...
Nc6 {[%clk 0:02:19.8]} 3. Bb5 {[%clk 0:02:58.4]} 3... Nf6 {[%clk 0:02:19.9]} 4.
d3 {[%clk 0:02:57.7]} 4... Bc5 {[%clk 0:02:18.4]} 5. Nbd2 {[%clk 0:02:53.2]}
5... Nd4 {[%clk 0:02:17.9]} 6. Nxd4 {[%clk 0:02:51.5]} 6... Bxd4 {[%clk
0:02:18.8]} 7. Nf3 {[%clk 0:02:50.3]} 7... Bb6 {[%clk 0:02:19.3]} 8. O-O {[%clk
0:02:45.6]} 8... O-O {[%clk 0:02:19]} 9. Nxe5 {[%clk 0:02:34.3]} 9... d5 {[%clk
0:02:19]} 10. Bg5 {[%clk 0:02:05.5]} 10... dxe4 {[%clk 0:02:17.2]} 11. dxe4
{[%clk 0:02:01]} 11... Qxd1 {[%clk 0:02:17]} 12. Raxd1 {[%clk 0:02:00.1]} 12...
c6 {[%clk 0:02:02.3]} 13. Bc4 {[%clk 0:01:48.7]} 13... Be6 {[%clk 0:01:46.9]}
14. Bxe6 {[%clk 0:01:44.8]} 14... fxe6 {[%clk 0:01:47.2]} 15. Nd7 {[%clk
0:01:42.2]} 15... Nxe4 {[%clk 0:01:46.2]} 16. Nxf8 {[%clk 0:01:38.9]} 16... Nxg5
{[%clk 0:01:45.3]} 17. Nd7 {[%clk 0:01:33]} 17... Bc7 {[%clk 0:01:45.4]} 18. Nc5
{[%clk 0:01:31]} 18... Bb6 {[%clk 0:01:44.2]} 19. Nxb7 {[%clk 0:01:28.3]} 19...
Rf8 {[%clk 0:01:41.1]} 20. Nd6 {[%clk 0:01:26]} 20... h5 {[%clk 0:01:31.5]} 21.
h4 {[%clk 0:01:16.6]} 21... Nh7 {[%clk 0:01:31.5]} 22. Nc4 {[%clk 0:01:11.3]}
22... Bc5 {[%clk 0:01:31.1]} 23. c3 {[%clk 0:01:10.3]} 23... Nf6 {[%clk
0:01:30.7]} 24. b4 {[%clk 0:01:08.2]} 24... Be7 {[%clk 0:01:30.3]} 25. Ne5
{[%clk 0:01:04.5]} 25... Nd5 {[%clk 0:01:29.7]} 26. Nxc6 {[%clk 0:01:02]} 26...
Bxh4 {[%clk 0:01:29.3]} 27. g3 {[%clk 0:00:59.5]} 27... Bf6 {[%clk 0:01:29.2]}
28. c4 {[%clk 0:00:58.1]} 28... Nc3 {[%clk 0:01:29.6]} 29. Rd7 {[%clk
0:00:52.9]} 29... Rc8 {[%clk 0:01:29.2]} 30. b5 {[%clk 0:00:50.1]} 30... a6
{[%clk 0:01:27.1]} 31. Re1 {[%clk 0:00:28.4]} 31... axb5 {[%clk 0:01:26.2]} 32.
cxb5 {[%clk 0:00:28.8]} 32... Nxb5 {[%clk 0:01:26.6]} 33. Rxe6 {[%clk
0:00:26.9]} 33... Ra8 {[%clk 0:01:22.4]} 34. Ne7+ {[%clk 0:00:24]} 34... Kf7
{[%clk 0:01:22.3]} 35. Rb6 {[%clk 0:00:21.6]} 35... Nd4 {[%clk 0:01:10.8]} 36.
Nd5+ {[%clk 0:00:19.1]} 36... Ke8 {[%clk 0:01:05.8]} 37. Nxf6+ {[%clk 0:00:20]}
37... gxf6 {[%clk 0:01:05.7]} 38. Rh7 {[%clk 0:00:16.8]} 1-0

[Event "Late-Titled-Tuesday-Blitz-September-12-2023"]
[Site "Chess.com"]
[Date "2023.09.12"]
[Round "9"]
[White "Mariia89"]
[Black "Zampronha1971"]
[Result "0-1"]
[WhiteElo "2025"]
[BlackElo "2294"]
[TimeControl "180+1"]
[EndTime "15:38:34 PDT"]
[Termination "Zampronha1971 won on time"]

1. d4 {[%clk 0:03:00]} 1... Nf6 {[%clk 0:02:59.3]} 2. Nf3 {[%clk 0:02:59.6]}
2... e6 {[%clk 0:02:59]} 3. Bg5 {[%clk 0:03:00]} 3... c5 {[%clk 0:02:59]} 4. e3
{[%clk 0:03:00]} 4... b6 {[%clk 0:02:58.9]} 5. c3 {[%clk 0:02:59.3]} 5... Bb7
{[%clk 0:02:58.5]} 6. Bd3 {[%clk 0:02:59]} 6... Be7 {[%clk 0:02:58.5]} 7. Nbd2
{[%clk 0:02:59.5]} 7... d5 {[%clk 0:02:54.9]} 8. Ne5 {[%clk 0:02:58.8]} 8... O-O
{[%clk 0:02:53.7]} 9. f4 {[%clk 0:02:37.6]} 9... Nc6 {[%clk 0:02:51.8]} 10. O-O
{[%clk 0:02:36.4]} 10... Nxe5 {[%clk 0:02:43.9]} 11. fxe5 {[%clk 0:02:30.7]}
11... Ne4 {[%clk 0:02:44.3]} 12. Bxe7 {[%clk 0:02:26.4]} 12... Qxe7 {[%clk
0:02:43.4]} 13. Bxe4 {[%clk 0:02:24]} 13... dxe4 {[%clk 0:02:44.3]} 14. Qg4
{[%clk 0:02:24]} 14... cxd4 {[%clk 0:02:39.3]} 15. exd4 {[%clk 0:02:22.7]} 15...
e3 {[%clk 0:02:38]} 16. Nf3 {[%clk 0:02:21.2]} 16... f6 {[%clk 0:02:28.8]} 17.
exf6 {[%clk 0:02:05.3]} 17... Qxf6 {[%clk 0:02:16.4]} 18. Ne5 {[%clk 0:01:59.6]}
18... Qh6 {[%clk 0:02:15.3]} 19. Nd7 {[%clk 0:01:45.6]} 19... Rf2 {[%clk
0:02:04.4]} 20. Rxf2 {[%clk 0:01:39.7]} 20... exf2+ {[%clk 0:02:05.3]} 21. Kxf2
{[%clk 0:01:34.1]} 21... Qxh2 {[%clk 0:02:01.5]} 22. Re1 {[%clk 0:00:58.2]}
22... Bd5 {[%clk 0:01:49.9]} 23. Re5 {[%clk 0:00:49.1]} 23... Rd8 {[%clk
0:01:40.6]} 24. Rh5 {[%clk 0:00:42.2]} 24... Qxg2+ {[%clk 0:01:20.6]} 25. Qxg2
{[%clk 0:00:39.5]} 25... Bxg2 {[%clk 0:01:21.5]} 26. Nxb6 {[%clk 0:00:20.3]}
26... Be4 {[%clk 0:01:19.3]} 27. Na4 {[%clk 0:00:15.4]} 27... Rb8 {[%clk
0:01:13.9]} 28. b3 {[%clk 0:00:03.9]} 28... Bb1 {[%clk 0:01:09.4]} 29. Nc5
{[%clk 0:00:03]} 29... Bxa2 {[%clk 0:01:08.5]} 30. b4 {[%clk 0:00:02.4]} 30...
Bd5 {[%clk 0:01:04.6]} 31. Re5 {[%clk 0:00:02.2]} 31... Kf7 {[%clk 0:01:02.6]}
32. Ke3 {[%clk 0:00:01.4]} 32... Ra8 {[%clk 0:01:02]} 0-1

[Event "Late-Titled-Tuesday-Blitz-September-12-2023"]
[Site "Chess.com"]
[Date "2023.09.12"]
[Round "9"]
[White "GAO"]
[Black "PNEPaul"]
[Result "1-0"]
[WhiteElo "2342"]
[BlackElo "1925"]
[TimeControl "180+1"]
[EndTime "15:38:35 PDT"]
[Termination "GAO won by resignation"]

1. Nf3 {[%clk 0:03:00.9]} 1... a6 {[%clk 0:02:54.2]} 2. g3 {[%clk 0:02:55.2]}
2... d6 {[%clk 0:02:54.3]} 3. Bg2 {[%clk 0:02:55]} 3... g6 {[%clk 0:02:54.7]} 4.
O-O {[%clk 0:02:54.3]} 4... h6 {[%clk 0:02:54.9]} 5. d4 {[%clk 0:02:54.5]} 5...
Bg7 {[%clk 0:02:54.7]} 6. e4 {[%clk 0:02:55]} 6... Nd7 {[%clk 0:02:54.5]} 7. c4
{[%clk 0:02:55.5]} 7... e5 {[%clk 0:02:54.5]} 8. Be3 {[%clk 0:02:54.2]} 8... Ne7
{[%clk 0:02:54.4]} 9. Nc3 {[%clk 0:02:54]} 9... O-O {[%clk 0:02:53.1]} 10. Qd2
{[%clk 0:02:53.3]} 10... Kh7 {[%clk 0:02:52.9]} 11. Rad1 {[%clk 0:02:48.3]}
11... c6 {[%clk 0:02:52.8]} 12. dxe5 {[%clk 0:02:44.8]} 12... dxe5 {[%clk
0:02:46.4]} 13. Qd6 {[%clk 0:02:45]} 13... Ng8 {[%clk 0:02:31.7]} 14. h4 {[%clk
0:02:40.8]} 14... Qf6 {[%clk 0:02:11.1]} 15. Na4 {[%clk 0:02:28]} 15... Re8
{[%clk 0:02:06.7]} 16. Nh2 {[%clk 0:01:49.8]} 16... Qxd6 {[%clk 0:02:03.6]} 17.
Rxd6 {[%clk 0:01:50.7]} 17... Bf8 {[%clk 0:02:03.1]} 18. Rd2 {[%clk 0:01:32.4]}
18... b5 {[%clk 0:02:03.1]} 19. Nb6 {[%clk 0:01:27.7]} 19... Nxb6 {[%clk
0:02:02]} 20. Bxb6 {[%clk 0:01:28.6]} 20... bxc4 {[%clk 0:01:57.4]} 21. a4
{[%clk 0:01:06.8]} 21... Be6 {[%clk 0:01:54.3]} 22. a5 {[%clk 0:01:06.9]} 22...
Bb4 {[%clk 0:01:34.9]} 23. Rc2 {[%clk 0:01:04.8]} 23... Rac8 {[%clk 0:01:33.9]}
24. Rfc1 {[%clk 0:01:02.3]} 24... Ne7 {[%clk 0:01:16.2]} 25. Bf1 {[%clk
0:00:59.4]} 25... c5 {[%clk 0:01:11.8]} 26. Bxc4 {[%clk 0:00:56.6]} 26... Bxc4
{[%clk 0:01:10.7]} 27. Rxc4 {[%clk 0:00:57.5]} 27... Nc6 {[%clk 0:01:07.9]} 28.
Ng4 {[%clk 0:00:53.5]} 28... Kg7 {[%clk 0:00:57]} 29. Bxc5 {[%clk 0:00:43.1]}
29... Bxa5 {[%clk 0:00:46.2]} 30. Bd6 {[%clk 0:00:32.1]} 30... f6 {[%clk
0:00:37.4]} 31. Rxc6 {[%clk 0:00:30.7]} 31... Rxc6 {[%clk 0:00:36.9]} 32. Rxc6
{[%clk 0:00:31.6]} 32... h5 {[%clk 0:00:31]} 33. Ne3 {[%clk 0:00:31.6]} 33...
Re6 {[%clk 0:00:27.8]} 34. Rxa6 {[%clk 0:00:29]} 34... Bb4 {[%clk 0:00:27]} 35.
Ra7+ {[%clk 0:00:27]} 1-0

[Event "Late-Titled-Tuesday-Blitz-September-12-2023"]
[Site "Chess.com"]
[Date "2023.09.12"]
[Round "9"]
[White "Andrej2004"]
[Black "Sinquefield"]
[Result "0-1"]
[WhiteElo "2534"]
[BlackElo "2456"]
[TimeControl "180+1"]
[EndTime "15:38:37 PDT"]
[Termination "Sinquefield won by resignation"]

1. Nf3 {[%clk 0:03:00.9]} 1... a6 {[%clk 0:02:57.7]} 2. b3 {[%clk 0:02:59.4]}
2... c6 {[%clk 0:02:58.1]} 3. Bb2 {[%clk 0:02:59.3]} 3... f6 {[%clk 0:02:58.8]}
4. c4 {[%clk 0:02:58.1]} 4... g6 {[%clk 0:02:59.2]} 5. h4 {[%clk 0:02:57.8]}
5... h6 {[%clk 0:02:51.1]} 6. d4 {[%clk 0:02:56.4]} 6... e6 {[%clk 0:02:43.2]}
7. Nc3 {[%clk 0:02:53.7]} 7... d6 {[%clk 0:02:43.2]} 8. e4 {[%clk 0:02:53.9]}
8... Bg7 {[%clk 0:02:43.5]} 9. Bd3 {[%clk 0:02:53.8]} 9... Ne7 {[%clk
0:02:42.9]} 10. Qc2 {[%clk 0:02:52.6]} 10... e5 {[%clk 0:02:19.8]} 11. O-O-O
{[%clk 0:02:49.8]} 11... Nd7 {[%clk 0:02:17.7]} 12. d5 {[%clk 0:02:48]} 12... c5
{[%clk 0:02:15]} 13. Ne2 {[%clk 0:02:37.2]} 13... b5 {[%clk 0:02:07.1]} 14. g4
{[%clk 0:02:30.1]} 14... bxc4 {[%clk 0:01:59.1]} 15. Bxc4 {[%clk 0:02:25.9]}
15... a5 {[%clk 0:01:56.5]} 16. g5 {[%clk 0:02:25.5]} 16... f5 {[%clk
0:01:54.2]} 17. exf5 {[%clk 0:02:18.6]} 17... Nxf5 {[%clk 0:01:51.4]} 18. Ng3
{[%clk 0:02:18.1]} 18... Nb6 {[%clk 0:01:34.9]} 19. Bd3 {[%clk 0:01:31.2]} 19...
O-O {[%clk 0:01:17]} 20. h5 {[%clk 0:01:29.8]} 20... Nxg3 {[%clk 0:01:14.6]} 21.
hxg6 {[%clk 0:00:39.6]} 21... Nxh1 {[%clk 0:01:06.6]} 22. gxh6 {[%clk
0:00:35.5]} 22... Bxh6+ {[%clk 0:01:05.6]} 23. Kb1 {[%clk 0:00:32.5]} 23... Rxf3
{[%clk 0:01:05.2]} 24. Rxh1 {[%clk 0:00:32.1]} 24... Rh3 {[%clk 0:00:36]} 25.
Rg1 {[%clk 0:00:29.8]} 25... Qf6 {[%clk 0:00:22.6]} 26. a3 {[%clk 0:00:13]}
26... Rxd3 {[%clk 0:00:21.5]} 0-1

[Event "Late-Titled-Tuesday-Blitz-September-12-2023"]
[Site "Chess.com"]
[Date "2023.09.12"]
[Round "9"]
[White "Rinqed222"]
[Black "diamonds13"]
[Result "0-1"]
[WhiteElo "2221"]
[BlackElo "2338"]
[TimeControl "180+1"]
[EndTime "15:38:42 PDT"]
[Termination "diamonds13 won on time"]

1. e4 {[%clk 0:03:00.9]} 1... c5 {[%clk 0:02:59.7]} 2. Nc3 {[%clk 0:03:00.6]}
2... Nc6 {[%clk 0:02:59]} 3. Bb5 {[%clk 0:03:00.9]} 3... Nd4 {[%clk 0:02:58.9]}
4. Nf3 {[%clk 0:03:00.8]} 4... a6 {[%clk 0:02:59.2]} 5. Bd3 {[%clk 0:03:00.9]}
5... b5 {[%clk 0:02:58.6]} 6. Nxd4 {[%clk 0:02:55.3]} 6... cxd4 {[%clk
0:02:58.9]} 7. Ne2 {[%clk 0:02:55.9]} 7... e5 {[%clk 0:02:58.5]} 8. O-O {[%clk
0:02:52.5]} 8... d5 {[%clk 0:02:56.1]} 9. f4 {[%clk 0:02:45.4]} 9... f5 {[%clk
0:02:51.5]} 10. exf5 {[%clk 0:01:58.6]} 10... e4 {[%clk 0:02:45.2]} 11. Ng3
{[%clk 0:01:59.3]} 11... exd3 {[%clk 0:02:41.9]} 12. Qh5+ {[%clk 0:01:59.1]}
12... Kd7 {[%clk 0:02:35.5]} 13. Qf7+ {[%clk 0:01:55.3]} 13... Qe7 {[%clk
0:02:34.1]} 14. Qxd5+ {[%clk 0:01:55.5]} 14... Kc7 {[%clk 0:02:23.2]} 15. Qxa8
{[%clk 0:01:17.9]} 15... Bb7 {[%clk 0:02:23.1]} 16. Qa7 {[%clk 0:01:18.6]} 16...
Qd7 {[%clk 0:02:11.5]} 17. cxd3 {[%clk 0:01:07]} 17... Nf6 {[%clk 0:02:08.9]}
18. b3 {[%clk 0:01:01.6]} 18... Qd5 {[%clk 0:02:08.4]} 19. Rf2 {[%clk
0:01:01.4]} 19... Bc5 {[%clk 0:02:07]} 20. Qxc5+ {[%clk 0:00:54.7]} 20... Qxc5
{[%clk 0:02:07.1]} 21. Bb2 {[%clk 0:00:55.6]} 21... Kb8 {[%clk 0:01:59.2]} 22.
Rc1 {[%clk 0:00:54.7]} 22... Qd5 {[%clk 0:01:49.2]} 23. Re2 {[%clk 0:00:45.9]}
23... Re8 {[%clk 0:01:46.5]} 24. Rxe8+ {[%clk 0:00:39.9]} 24... Nxe8 {[%clk
0:01:46.3]} 25. Ne4 {[%clk 0:00:40]} 25... Qxf5 {[%clk 0:01:37.9]} 26. Bxd4
{[%clk 0:00:32.5]} 26... Bxe4 {[%clk 0:01:35.6]} 27. Be5+ {[%clk 0:00:32.9]}
27... Kb7 {[%clk 0:01:33.9]} 28. dxe4 {[%clk 0:00:32]} 28... Qxe4 {[%clk
0:01:31.6]} 29. Kf2 {[%clk 0:00:27.6]} 29... Qd3 {[%clk 0:01:26.7]} 30. Bc3
{[%clk 0:00:17.4]} 30... Nd6 {[%clk 0:01:22.6]} 31. Re1 {[%clk 0:00:03.4]} 31...
Ne4+ {[%clk 0:01:21.2]} 32. Kg1 {[%clk 0:00:03]} 32... Nxc3 {[%clk 0:01:18.6]}
33. dxc3 {[%clk 0:00:03.5]} 33... Qxc3 {[%clk 0:01:18.5]} 34. Kf2 {[%clk
0:00:02.7]} 34... Qd4+ {[%clk 0:01:15.6]} 35. Kf3 {[%clk 0:00:02.2]} 35... Qd3+
{[%clk 0:01:13.5]} 36. Re3 {[%clk 0:00:02.4]} 36... Qf1+ {[%clk 0:01:11.2]} 37.
Kg3 {[%clk 0:00:02]} 37... Qb1 {[%clk 0:01:07]} 38. Re7+ {[%clk 0:00:01.3]}
38... Kb6 {[%clk 0:01:06.6]} 39. Rxg7 {[%clk 0:00:02.2]} 39... Qxa2 {[%clk
0:01:03.9]} 40. Rxh7 {[%clk 0:00:02.6]} 40... Qxb3+ {[%clk 0:01:04]} 41. Kg4
{[%clk 0:00:01.7]} 41... Qd1+ {[%clk 0:01:03.5]} 42. Kg5 {[%clk 0:00:01.4]}
42... Qd8+ {[%clk 0:01:02]} 0-1